fUST/lending_fUST_20240910
["ID","MTS","AMOUNT","RATE_DAILY","PERIOD"]
[337674175,1725939049958,-151.0,0.00021917,2]
[337674176,1725939049969,-151.0,0.00021917,2]
[337674177,1725939049980,-151.0,0.00021917,2]
[337674178,1725939049991,-151.0,0.00021917,2]
[337674179,1725939050001,-151.0,0.00021917,2]
[337674180,1725939050013,-500.0,0.00021917,2]
[337674181,1725939050023,-542.91584567,0.00021917,2]
[337674182,1725939050032,-500.0,0.00021917,2]
[337674183,1725939050042,-151.0,0.00021917,2]
[337674184,1725939050052,-151.0,0.00021917,2]
[337674185,1725939050063,-151.0,0.00021917,2]
[337674186,1725939050072,-151.0,0.00021917,2]
[337674187,1725939050081,-506.8767011,0.00021917,2]
[337674188,1725939050091,-203.536516,0.00021917,2]
[337674189,1725939050100,-502.43479788,0.00021917,2]
[337674190,1725939050109,-567.95,0.00021917,2]
[337674191,1725939050118,-916.71,0.00021917,2]
[337674192,1725939050127,-608.54,0.00021917,2]
[337674193,1725939050136,-504.67577351,0.00021917,2]
[337674194,1725939050145,-503.5461941,0.00021917,2]
[337674195,1725939050156,-151.0,0.00021917,2]
[337674196,1725939050166,-151.0,0.00021917,2]
[337674197,1725939050175,-151.0,0.00021917,2]
[337674198,1725939050184,-151.0,0.00021917,2]
[337674199,1725939050194,-151.0,0.00021917,2]
[337674200,1725939050203,-600.08526517,0.00021917,2]
[337674201,1725939050213,-151.0,0.00021917,2]
[337674202,1725939050222,-500.0,0.00021917,2]
[337674203,1725939050232,-500.0,0.00021917,2]
[337674204,1725939050242,-500.0,0.00021917,2]
[337674205,1725939050251,-500.0,0.00021917,2]
[337674206,1725939050260,-500.0,0.00021917,2]
[337674207,1725939050270,-1287.36,0.00021917,2]
[337674208,1725939050280,-1990.7,0.00021917,2]
[337674209,1725939050290,-1099.19,0.00021917,2]
[337674210,1725939050299,-500.0,0.00021917,2]
[337674211,1725939050309,-500.0,0.00021917,2]
[337674212,1725939050319,-1210.41,0.00021917,2]
[337674213,1725939050328,-157.548438,0.00021917,2]
[337674214,1725939050337,-157.548438,0.00021917,2]
[337674215,1725939050346,-157.548438,0.00021917,2]
[337674216,1725939050356,-692.71,0.00021917,2]
[337674217,1725939050365,-157.548438,0.00021917,2]
[337674218,1725939050375,-157.548438,0.00021917,2]
[337674219,1725939050384,-157.548438,0.00021917,2]
[337674220,1725939050394,-157.548438,0.00021917,2]
[337674221,1725939050406,-157.548438,0.00021917,2]
[337674222,1725939050415,-157.548438,0.00021917,2]
[337674223,1725939050425,-157.548438,0.00021917,2]
[337674224,1725939050436,-157.548438,0.00021917,2]
[337674225,1725939050446,-157.548438,0.00021917,2]
[337674226,1725939050455,-500.0,0.00021917,2]
[337674227,1725939050465,-500.0,0.00021917,2]
[337674228,1725939050475,-500.0,0.00021917,2]
[337674229,1725939050485,-503.26235754,0.00021917,2]
[337674230,1725939050494,-500.0,0.00021917,2]
[337674231,1725939050503,-502.20021747,0.00021917,2]
[337674232,1725939050512,-501.70109812,0.00021917,2]
[337674233,1725939050521,-500.0,0.00021917,2]
[337674234,1725939050530,-500.0,0.00021917,2]
[337674235,1725939050540,-500.0,0.00021917,2]
[337674236,1725939050549,-500.0,0.00021917,2]
[337674237,1725939050559,-500.0,0.00021917,2]
[337674238,1725939050573,-176.81186051,0.00021917,2]
[337674239,1725939050582,-1145.91,0.00021917,2]
[337674240,1725939050591,-500.0,0.00021917,2]
[337674241,1725939050601,-1427.61,0.00021917,2]
[337674242,1725939050612,-500.0,0.00021917,2]
[337674243,1725939050621,-502.92608811,0.00021917,2]
[337674244,1725939050631,-506.21194666,0.00021917,2]
[337674245,1725939050641,-500.0,0.00021917,2]
[337674246,1725939050651,-500.0,0.00021917,2]
[337674247,1725939050661,-722.6,0.00021917,2]
[337674248,1725939050671,-500.0,0.00021917,2]
[337674249,1725939050680,-506.92768438,0.00021917,2]
[337674250,1725939050690,-2031.08,0.00021917,2]
[337674251,1725939050700,-503.2918749,0.00021917,2]
[337674252,1725939050709,-1610.515359,0.00021917,2]
[337674253,1725939050720,-1610.515359,0.00021917,2]
[337674254,1725939050729,-1610.515359,0.00021917,2]
[337674255,1725939050738,-1610.515359,0.00021917,2]
[337674256,1725939050748,-1610.515359,0.00021917,2]
[337674257,1725939050758,-1610.515359,0.00021917,2]
[337674258,1725939050768,-1610.515359,0.00021917,2]
[337674259,1725939050778,-1610.515359,0.00021917,2]
[337674260,1725939050788,-1610.515359,0.00021917,2]
[337674261,1725939050797,-151.0,0.00021917,2]
[337674262,1725939050807,-1610.515359,0.00021917,2]
[337674263,1725939050817,-151.0,0.00021917,2]
[337674264,1725939050827,-1610.515359,0.00021917,2]
[337674265,1725939050836,-151.0,0.00021917,2]
[337674266,1725939050846,-1610.51536,0.00021917,2]
[337674267,1725939050856,-151.0,0.00021917,2]
[337674268,1725939050866,-151.0,0.00021917,2]
[337674269,1725939050876,-151.0,0.00021917,2]
[337674270,1725939050885,-503.92068909,0.00021917,2]
[337674271,1725939050895,-1564.66,0.00021917,2]
[337674272,1725939050905,-151.0,0.00021917,2]
[337674273,1725939050914,-151.0,0.00021917,2]
[337674274,1725939050924,-1870.34,0.00021917,2]
[337674275,1725939050934,-151.0,0.00021917,2]
[337674276,1725939050943,-500.0,0.00021917,2]
[337674277,1725939050952,-505.77089559,0.00021917,2]
[337674278,1725939050962,-504.96329044,0.00021917,2]
[337674279,1725939050972,-500.0,0.00021917,2]
[337674280,1725939050981,-2021.67,0.00021917,2]
[337674281,1725939050990,-503.89402504,0.00021917,2]
[337674282,1725939051001,-500.0,0.00021917,2]
[337674283,1725939051010,-501.30464746,0.00021917,2]
[337674284,1725939051020,-500.0,0.00021917,2]
[337674285,1725939051029,-509.34,0.00021917,2]
[337674286,1725939051038,-500.0,0.00021917,2]
[337674287,1725939051048,-500.0,0.00021917,2]
[337674288,1725939051058,-504.4577273,0.00021917,2]
[337674289,1725939051067,-502.05131347,0.00021917,2]
[337674290,1725939051076,-500.0,0.00021917,2]
[337674291,1725939051085,-500.0,0.00021917,2]
[337674292,1725939051095,-701.74,0.00021917,2]
[337674293,1725939051105,-500.0,0.00021917,2]
[337674294,1725939051115,-500.0,0.00021917,2]
[337674295,1725939051124,-500.0,0.00021917,2]
[337674296,1725939051134,-1033.92,0.00021917,2]
[337674297,1725939051143,-500.0,0.00021917,2]
[337674298,1725939051152,-503.57061304,0.00021917,2]
[337674299,1725939051162,-628.73,0.00021917,2]
[337674300,1725939051172,-500.0,0.00021917,2]
[337674301,1725939051182,-500.0,0.00021917,2]
[337674302,1725939051192,-308.47973874,0.00021917,2]
[337674303,1725939051201,-672.66,0.00021917,2]
[337674304,1725939051210,-514.29210023,0.00021917,2]
[337674305,1725939051219,-2651.99,0.00021917,2]
[337674306,1725939051228,-500.0,0.00021917,2]
[337674307,1725939051237,-501.86802525,0.00021917,2]
[337674308,1725939051246,-78442.61,0.00021917,2]
[337674309,1725939051255,-5051.4,0.00021917,2]
[337674310,1725939051264,-500.83040021,0.00021917,2]
[337674311,1725939051274,-519.81,0.00021917,2]
[337674312,1725939051283,-7063.46,0.00021917,2]
[337674313,1725939051292,-500.0,0.00021917,2]
[337674314,1725939051302,-500.0,0.00021917,2]
[337674315,1725939051311,-180.88880559,0.00021917,2]
[337674316,1725939051320,-1307.93,0.00021917,2]
[337674317,1725939051330,-500.80439351,0.00021917,2]
[337674318,1725939051340,-725.99,0.00021917,2]
[337674319,1725939051349,-500.98855835,0.00021917,2]
[337674320,1725939051358,-500.0,0.00021917,2]
[337674321,1725939051367,-502.50629704,0.00021917,2]
[337674322,1725939051376,-500.0,0.00021917,2]
[337674323,1725939051386,-500.0,0.00021917,2]
[337674324,1725939051395,-500.37811525,0.00021917,2]
[337674325,1725939051405,-1586.18,0.00021917,2]
[337674326,1725939051414,-578.27,0.00021917,2]
[337674327,1725939051423,-624.1,0.00021917,2]
[337674328,1725939051432,-500.0,0.00021917,2]
[337674329,1725939051442,-502.31423615,0.00021917,2]
[337674330,1725939051451,-504.72525001,0.00021917,2]
[337674331,1725939051461,-2107.95,0.00021917,2]
[337674332,1725939051470,-4603.23,0.00021917,2]
[337674333,1725939051479,-500.0,0.00021917,2]
[337674334,1725939051488,-1051.85,0.00021917,2]
[337674335,1725939051498,-500.0,0.00021917,2]
[337674336,1725939051507,-226.976582,0.00021917,2]
[337674337,1725939051516,-500.0,0.00021917,2]
[337674338,1725939051525,-500.0,0.00021917,2]
[337674339,1725939051534,-500.0,0.00021917,2]
[337674340,1725939051543,-226.976582,0.00021917,2]
[337674341,1725939051553,-226.976582,0.00021917,2]
[337674342,1725939051563,-226.976582,0.00021917,2]
[337674343,1725939051573,-226.976582,0.00021917,2]
[337674344,1725939051582,-226.976582,0.00021917,2]
[337674345,1725939051591,-500.0,0.00021917,2]
[337674346,1725939051600,-226.976582,0.00021917,2]
[337674347,1725939051611,-500.0,0.00021917,2]
[337674348,1725939051620,-226.976582,0.00021917,2]
[337674349,1725939051629,-226.976582,0.00021917,2]
[337674350,1725939051639,-226.976582,0.00021917,2]
[337674351,1725939051649,-226.976582,0.00021917,2]
[337674352,1725939051659,-820.23,0.00021917,2]
[337674353,1725939051668,-226.976582,0.00021917,2]
[337674354,1725939051679,-500.0,0.00021917,2]
[337674355,1725939051689,-944.846674,0.00021917,2]
[337674356,1725939051699,-483.009698,0.00021917,2]
[337674357,1725939051708,-944.846674,0.00021917,2]
[337674358,1725939051718,-500.0,0.00021917,2]
[337674359,1725939051728,-483.009698,0.00021917,2]
[337674360,1725939051738,-483.009698,0.00021917,2]
[337674361,1725939051748,-944.846674,0.00021917,2]
[337674362,1725939051757,-483.009698,0.00021917,2]
[337674363,1725939051767,-944.846674,0.00021917,2]
[337674364,1725939051778,-841.25,0.00021917,2]
[337674365,1725939051789,-483.009698,0.00021917,2]
[337674366,1725939051801,-944.846674,0.00021917,2]
[337674367,1725939051812,-483.009698,0.00021917,2]
[337674368,1725939051822,-944.846674,0.00021917,2]
[337674369,1725939051832,-500.0,0.00021917,2]
[337674370,1725939051841,-891.47,0.00021917,2]
[337674371,1725939051851,-483.009698,0.00021917,2]
[337674372,1725939051861,-483.009698,0.00021917,2]
[337674373,1725939051872,-944.846674,0.00021917,2]
[337674374,1725939051882,-483.009698,0.00021917,2]
[337674375,1725939051893,-944.846674,0.00021917,2]
[337674376,1725939051903,-507.71566468,0.00021917,2]
[337674377,1725939051914,-500.0,0.00021917,2]
[337674378,1725939051925,-944.846674,0.00021917,2]
[337674379,1725939051935,-483.009698,0.00021917,2]
[337674380,1725939051944,-944.846674,0.00021917,2]
[337674381,1725939051954,-483.009698,0.00021917,2]
[337674382,1725939051963,-1644.75,0.00021917,2]
[337674383,1725939051974,-483.009692,0.00021917,2]
[337674384,1725939051984,-944.846674,0.00021917,2]
[337674385,1725939051993,-163.213645,0.00021917,2]
[337674386,1725939052003,-944.846681,0.00021917,2]
[337674387,1725939052014,-1032.44,0.00021917,2]
[337674388,1725939052024,-195.94427851,0.00021917,2]
[337674389,1725939052034,-500.0,0.00021917,2]
[337674390,1725939052183,-534.64,0.00021917,2]
[337674391,1725939052200,-907.37,0.00021917,2]
[337674392,1725939052210,-501.48539402,0.00021917,2]
[337674393,1725939052219,-500.0,0.00021917,2]
[337674394,1725939052229,-500.0,0.00021917,2]
[337674395,1725939052238,-500.0,0.00021917,2]
[337674396,1725939052248,-4754.32,0.00021917,2]
[337674397,1725939052257,-500.0,0.00021917,2]
[337674398,1725939052267,-873.06,0.00021917,2]
[337674399,1725939052277,-500.0,0.00021917,2]
[337674400,1725939052286,-2252.89,0.00021917,2]
[337674401,1725939052295,-500.0,0.00021917,2]
[337674402,1725939052304,-500.0,0.00021917,2]
[337674403,1725939052313,-500.0,0.00021917,2]
[337674404,1725939052323,-1283.208257,0.00021917,2]
[337674405,1725939052332,-500.0,0.00021917,2]
[337674406,1725939052341,-1283.208257,0.00021917,2]
[337674407,1725939052350,-1283.208257,0.00021917,2]
[337674408,1725939052359,-7933.51,0.00021917,2]
[337674409,1725939052368,-1283.208257,0.00021917,2]
[337674410,1725939052377,-501.18030637,0.00021917,2]
[337674411,1725939052386,-2603.98,0.00021917,2]
[337674412,1725939052396,-1283.208257,0.00021917,2]
[337674413,1725939052407,-1283.208257,0.00021917,2]
[337674414,1725939052416,-500.0,0.00021917,2]
[337674415,1725939052425,-501.58509281,0.00021917,2]
[337674416,1725939052435,-500.0,0.00021917,2]
[337674417,1725939052445,-534.77,0.00021917,2]
[337674418,1725939052454,-1283.208257,0.00021917,2]
[337674419,1725939052463,-1283.208257,0.00021917,2]
[337674420,1725939052472,-1283.208257,0.00021917,2]
[337674421,1725939052482,-1283.208257,0.00021917,2]
[337674422,1725939052491,-1904.32,0.00021917,2]
[337674423,1725939052500,-500.0,0.00021917,2]
[337674424,1725939052509,-1283.208257,0.00021917,2]
[337674425,1725939052519,-8856.77,0.00021917,2]
[337674426,1725939052527,-1283.20826,0.00021917,2]
[337674427,1725939052536,-500.0,0.00021917,2]
[337674428,1725939052546,-295.458454,0.00021917,2]
[337674429,1725939052556,-295.458454,0.00021917,2]
[337674430,1725939052570,-628.30504045,0.00021917,2]
[337674431,1725939052579,-1125.18,0.00021917,2]
[337674432,1725939052588,-295.458454,0.00021917,2]
[337674433,1725939052597,-500.0,0.00021917,2]
[337674434,1725939052606,-295.458454,0.00021917,2]
[337674435,1725939052617,-295.458454,0.00021917,2]
[337674436,1725939052627,-295.458454,0.00021917,2]
[337674437,1725939052636,-500.0,0.00021917,2]
[337674438,1725939052646,-295.458454,0.00021917,2]
[337674439,1725939052656,-295.458454,0.00021917,2]
[337674440,1725939052665,-295.458454,0.00021917,2]
[337674441,1725939052676,-295.458454,0.00021917,2]
[337674442,1725939052685,-295.458454,0.00021917,2]
[337674443,1725939052695,-295.458444,0.00021917,2]
[337674444,1725939052703,-1474.28,0.00021917,2]
[337674445,1725939052713,-151.0,0.00021917,2]
[337674446,1725939052722,-502.58852765,0.00021917,2]
[337674447,1725939052732,-151.0,0.00021917,2]
[337674448,1725939052741,-1728.83,0.00021917,2]
[337674449,1725939052750,-151.0,0.00021917,2]
[337674450,1725939052759,-1131.85,0.00021917,2]
[337674451,1725939052768,-500.0,0.00021917,2]
[337674452,1725939052777,-151.0,0.00021917,2]
[337674453,1725939052786,-151.0,0.00021917,2]
[337674454,1725939052795,-151.0,0.00021917,2]
[337674455,1725939052805,-500.0,0.00021917,2]
[337674456,1725939052814,-500.0,0.00021917,2]
[337674457,1725939052824,-501.30145709,0.00021917,2]
[337674458,1725939052833,-4885.63,0.00021917,2]
[337674459,1725939052841,-2166.69,0.00021917,2]
[337674460,1725939052851,-500.0,0.00021917,2]
[337674461,1725939052860,-500.0,0.00021917,2]
[337674462,1725939052870,-1094.82,0.00021917,2]
[337674463,1725939052880,-500.0,0.00021917,2]
[337674464,1725939052889,-500.0,0.00021917,2]
[337674465,1725939052898,-2268.52,0.00021917,2]
[337674466,1725939052908,-503.92364613,0.00021917,2]
[337674467,1725939052917,-1475.2,0.00021917,2]
[337674468,1725939052926,-500.0,0.00021917,2]
[337674469,1725939052935,-500.0,0.00021917,2]
[337674470,1725939052944,-500.0,0.00021917,2]
[337674471,1725939052953,-500.0,0.00021917,2]
[337674472,1725939052963,-442.271963,0.00021917,2]
[337674473,1725939052972,-500.0,0.00021917,2]
[337674474,1725939052981,-527.81934227,0.00021917,2]
[337674475,1725939052991,-442.271963,0.00021917,2]
[337674476,1725939053000,-500.0,0.00021917,2]
[337674477,1725939053009,-442.271963,0.00021917,2]
[337674478,1725939053018,-442.271963,0.00021917,2]
[337674479,1725939053027,-442.271963,0.00021917,2]
[337674480,1725939053036,-442.271963,0.00021917,2]
[337674481,1725939053045,-500.0,0.00021917,2]
[337674482,1725939053055,-1003.24,0.00021917,2]
[337674483,1725939053064,-500.0,0.00021917,2]
[337674484,1725939053074,-541.25,0.00021917,2]
[337674485,1725939053084,-442.271963,0.00021917,2]
[337674486,1725939053095,-1809.76,0.00021917,2]
[337674487,1725939053105,-442.271963,0.00021917,2]
[337674488,1725939053116,-442.271963,0.00021917,2]
[337674489,1725939053126,-442.271963,0.00021917,2]
[337674490,1725939053137,-500.0,0.00021917,2]
[337674491,1725939053147,-442.271963,0.00021917,2]
[337674492,1725939053159,-442.271961,0.00021917,2]
[337674493,1725939053168,-1709.98,0.00021917,2]
[337674494,1725939053177,-500.0,0.00021917,2]
[337674495,1725939053186,-4653.86,0.00021917,2]
[337674496,1725939053195,-506.250236,0.00021917,2]
[337674497,1725939053204,-500.0,0.00021917,2]
[337674498,1725939053214,-506.250236,0.00021917,2]
[337674499,1725939053223,-1023.42,0.00021917,2]
[337674500,1725939053234,-500.0,0.00021917,2]
[337674501,1725939053244,-506.250236,0.00021917,2]
[337674502,1725939053254,-506.250236,0.00021917,2]
[337674503,1725939053264,-506.250236,0.00021917,2]
[337674504,1725939053275,-501.89407592,0.00021917,2]
[337674505,1725939053286,-506.250236,0.00021917,2]
[337674506,1725939053296,-4927.61,0.00021917,2]
[337674507,1725939053306,-500.0,0.00021917,2]
[337674508,1725939053318,-2070.82,0.00021917,2]
[337674509,1725939053328,-506.250236,0.00021917,2]
[337674510,1725939053339,-506.250236,0.00021917,2]
[337674511,1725939053348,-500.0,0.00021917,2]
[337674512,1725939053357,-506.250236,0.00021917,2]
[337674513,1725939053366,-506.250236,0.00021917,2]
[337674514,1725939053375,-506.250236,0.00021917,2]
[337674515,1725939053385,-506.250242,0.00021917,2]
[337674516,1725939053394,-500.0,0.00021917,2]
[337674517,1725939053403,-500.0,0.00021917,2]
[337674518,1725939053412,-500.0,0.00021917,2]
[337674519,1725939053422,-1823.31,0.00021917,2]
[337674520,1725939053431,-162.044293,0.00021917,2]
[337674521,1725939053440,-500.0,0.00021917,2]
[337674522,1725939053449,-500.0,0.00021917,2]
[337674523,1725939053459,-500.0,0.00021917,2]
[337674524,1725939053469,-2211.34,0.00021917,2]
[337674525,1725939053480,-524.91,0.00021917,2]
[337674526,1725939053491,-501.94627665,0.00021917,2]
[337674527,1725939053502,-500.0,0.00021917,2]
[337674528,1725939053512,-503.09004834,0.00021917,2]
[337674529,1725939053524,-500.0,0.00021917,2]
[337674530,1725939053534,-1173.75,0.00021917,2]
[337674531,1725939053544,-1623.16,0.00021917,2]
[337674532,1725939053555,-500.0,0.00021917,2]
[337674533,1725939053569,-735.11,0.00021917,2]
[337674534,1725939053579,-503.44565539,0.00021917,2]
[337674535,1725939053591,-500.0,0.00021917,2]
[337674536,1725939053601,-500.0,0.00021917,2]
[337674537,1725939053613,-933.41,0.00021917,2]
[337674538,1725939053625,-3206.04,0.00021917,2]
[337674539,1725939053634,-928.42,0.00021917,2]
[337674540,1725939053644,-503.07509185,0.00021917,2]
[337674541,1725939053653,-500.0,0.00021917,2]
[337674542,1725939053664,-500.0,0.00021917,2]
[337674543,1725939053674,-505.15761073,0.00021917,2]
[337674544,1725939053683,-539.4080335,0.00021917,2]
[337674545,1725939053692,-684.91,0.00021917,2]
[337674546,1725939053701,-1569.32,0.00021917,2]
[337674547,1725939053710,-503.78826697,0.00021917,2]
[337674548,1725939053719,-502.57110574,0.00021917,2]
[337674549,1725939053729,-503.59430299,0.00021917,2]
[337674550,1725939053738,-500.0,0.00021917,2]
[337674551,1725939053747,-500.0,0.00021917,2]
[337674552,1725939053756,-502.93161317,0.00021917,2]
[337674553,1725939053766,-500.0,0.00021917,2]
[337674554,1725939053775,-707.51,0.00021917,2]
[337674555,1725939053785,-3824.01,0.00021917,2]
[337674556,1725939053795,-448.07582262,0.00021917,2]
[337674557,1725939053804,-273.93283798,0.00021917,2]
[337674558,1725939053813,-500.0,0.00021917,2]
[337674559,1725939053823,-500.0,0.00021917,2]
[337674560,1725939053833,-1306.86,0.00021917,2]
[337674561,1725939053843,-504.32514012,0.00021917,2]
[337674562,1725939053852,-7056.03,0.00021917,2]
[337674563,1725939053862,-1683.97,0.00021917,2]
[337674564,1725939053872,-500.0,0.00021917,2]
[337674565,1725939053883,-500.0,0.00021917,2]
[337674566,1725939053892,-500.0,0.00021917,2]
[337674567,1725939053902,-500.0,0.00021917,2]
[337674568,1725939053913,-500.0,0.00021917,2]
[337674569,1725939053924,-500.0,0.00021917,2]
[337674570,1725939053935,-2013.7,0.00021917,2]
[337674571,1725939053947,-640.8693404,0.00021917,2]
[337674572,1725939053959,-577.66,0.00021917,2]
[337674573,1725939053970,-500.0,0.00021917,2]
[337674574,1725939053979,-513.56267429,0.00021917,2]
[337674575,1725939053989,-158.27546,0.00021917,2]
[337674576,1725939053999,-158.27546,0.00021917,2]
[337674577,1725939054009,-500.0,0.00021917,2]
[337674578,1725939054019,-825.05,0.00021917,2]
[337674579,1725939054029,-158.27546,0.00021917,2]
[337674580,1725939054039,-500.92616293,0.00021917,2]
[337674581,1725939054049,-500.0,0.00021917,2]
[337674582,1725939054060,-158.27546,0.00021917,2]
[337674583,1725939054070,-158.27546,0.00021917,2]
[337674584,1725939054081,-158.27546,0.00021917,2]
[337674585,1725939054091,-546.085068,0.00021917,2]
[337674586,1725939054102,-500.0,0.00021917,2]
[337674587,1725939054112,-546.085068,0.00021917,2]
[337674588,1725939054124,-193.833771,0.00021917,2]
[337674589,1725939054135,-158.27546,0.00021917,2]
[337674590,1725939054147,-546.085068,0.00021917,2]
[337674591,1725939054159,-193.833771,0.00021917,2]
[337674592,1725939054169,-158.27546,0.00021917,2]
[337674593,1725939054180,-546.085068,0.00021917,2]
[337674594,1725939054192,-193.833771,0.00021917,2]
[337674595,1725939054203,-158.27546,0.00021917,2]
[337674596,1725939054215,-193.833771,0.00021917,2]
[337674597,1725939054227,-546.085068,0.00021917,2]
[337674598,1725939054236,-726.66,0.00021917,2]
[337674599,1725939054245,-1315.48,0.00021917,2]
[337674600,1725939054255,-158.27546,0.00021917,2]
[337674601,1725939054266,-193.833771,0.00021917,2]
[337674602,1725939054275,-500.0,0.00021917,2]
[337674603,1725939054284,-158.27546,0.00021917,2]
[337674604,1725939054293,-676.55,0.00021917,2]
[337674605,1725939054302,-193.833771,0.00021917,2]
[337674606,1725939054311,-158.275459,0.00021917,2]
[337674607,1725939054320,-859.6,0.00021917,2]
[337674608,1725939054330,-546.085068,0.00021917,2]
[337674609,1725939054339,-500.0,0.00021917,2]
[337674610,1725939054348,-500.0,0.00021917,2]
[337674611,1725939054357,-193.833771,0.00021917,2]
[337674612,1725939054367,-546.085068,0.00021917,2]
[337674613,1725939054376,-193.833771,0.00021917,2]
[337674614,1725939054386,-546.085068,0.00021917,2]
[337674615,1725939054395,-193.833771,0.00021917,2]
[337674616,1725939054407,-546.085068,0.00021917,2]
[337674617,1725939054416,-546.085068,0.00021917,2]
[337674618,1725939054425,-193.833771,0.00021917,2]
[337674619,1725939054437,-546.085068,0.00021917,2]
[337674620,1725939054447,-193.833771,0.00021917,2]
[337674621,1725939054459,-500.0,0.00021917,2]
[337674622,1725939054469,-546.085065,0.00021917,2]
[337674623,1725939054478,-193.833763,0.00021917,2]
[337674624,1725939054487,-601.44226984,0.00021917,2]
[337674625,1725939054496,-557.31,0.00021917,2]
[337674626,1725939054506,-500.0,0.00021917,2]
[337674627,1725939054515,-500.0,0.00021917,2]
[337674628,1725939054524,-500.0,0.00021917,2]
[337674629,1725939054534,-669.74,0.00021917,2]
[337674630,1725939054543,-62535.33,0.00021917,2]
[337674631,1725939054552,-504.2932607,0.00021917,2]
[337674632,1725939054562,-754.33,0.00021917,2]
[337674633,1725939054575,-1884.05,0.00021917,2]
[337674634,1725939054584,-500.0,0.00021917,2]
[337674635,1725939054594,-501.05865038,0.00021917,2]
[337674636,1725939054603,-649.62,0.00021917,2]
[337674637,1725939054613,-1550.65,0.00021917,2]
[337674638,1725939054622,-502.02872896,0.00021917,2]
[337674639,1725939054631,-500.0,0.00021917,2]
[337674640,1725939054640,-502.507917,0.00021917,2]
[337674641,1725939054650,-4017.97,0.00021917,2]
[337674642,1725939054661,-500.0,0.00021917,2]
[337674643,1725939054670,-500.0,0.00021917,2]
[337674644,1725939054680,-505.34,0.00021917,2]
[337674645,1725939054689,-500.0,0.00021917,2]
[337674646,1725939054698,-500.0,0.00021917,2]
[337674647,1725939054707,-500.0,0.00021917,2]
[337674648,1725939054716,-500.0,0.00021917,2]
[337674649,1725939054726,-500.0,0.00021917,2]
[337674650,1725939054736,-502.56308793,0.00021917,2]
[337674651,1725939054745,-500.0,0.00021917,2]
[337674652,1725939054755,-548.71,0.00021917,2]
[337674653,1725939054764,-500.0,0.00021917,2]
[337674654,1725939054774,-500.0,0.00021917,2]
[337674655,1725939054785,-500.0,0.00021917,2]
[337674656,1725939054796,-372.56267105,0.00021917,2]
[337674657,1725939054807,-700.22,0.00021917,2]
[337674658,1725939054818,-336.55467153,0.00021917,2]
[337674659,1725939054829,-628.58,0.00021917,2]
[337674660,1725939054839,-1686.11,0.00021917,2]
[337674661,1725939054850,-509.67127662,0.00021917,2]
[337674662,1725939054861,-1578.3,0.00021917,2]
[337674663,1725939054871,-2147.03,0.00021917,2]
[337674664,1725939054881,-500.0,0.00021917,2]
[337674665,1725939054891,-589.85,0.00021917,2]
[337674666,1725939054902,-500.0,0.00021917,2]
[337674667,1725939054913,-500.0,0.00021917,2]
[337674668,1725939054923,-2193.09,0.00021917,2]
[337674669,1725939054936,-500.0,0.00021917,2]
[337674670,1725939054947,-670.25,0.00021917,2]
[337674671,1725939054956,-203.180249,0.00021917,2]
[337674672,1725939054967,-203.180249,0.00021917,2]
[337674673,1725939054977,-203.180249,0.00021917,2]
[337674674,1725939054987,-230.5802708,0.00021917,2]